Cogmind - Beta 14 @@@ ROGUE MODE // 2024.10.11 @ 14:35:50 Player: EgorIV Result: Destroyed by S-10 Pest with Light Assault Rifle Performance ------------- Evolutions (2) 1000 Regions Visited (6) 1200 Robots Destroyed (7) 35 Value Destroyed (208) 208 Prototype IDs (23) 460 Alien Tech Used (0) 0 Bonus (300) 300 TOTAL SCORE: 3203 Bonus ------- Aligned with FarCom 300 Cogmind --------- Core Integrity 0/550 Matter 271/300 Energy 99/100 System Corruption 15% Temperature Cool (0) Movement Core (50) Location -8/Storage Parts ------- > --- POWER (1) -------- (None) > --- PROPULSION (3) --- (None) > --- UTILITY (4) ------ (None) > --- WEAPON (3) ------- (None) > --- INVENTORY (5) ---- Light Ion Engine Medium Laser Peak State ------------ > --- POWER ------------ (None) > --- PROPULSION ------- Improved Aluminum Leg > --- UTILITY ---------- Advanced Weight Redist. System Skeleton Box > --- WEAPON ----------- EM Pulse Gun Plasma Cutter Katana > --- INVENTORY -------- Ion Engine Light Ion Engine Medium Laser [Rating: 17] Favorites ----------- Power Light Ion Engine Engine Light Ion Engine Power Core Light Nuclear Core Propulsion Wheel Leg Improved Aluminum Leg Wheel Wheel Utility Medium Storage Unit Device Advanced Weight Redist. System Storage Medium Storage Unit Processor 0b10 Alert Chip Weapon Medium Laser Energy Gun Medium Laser Ballistic Gun Light Assault Rifle Launcher Grenade Launcher Special Weapon Plasma Cutter Slashing Weapon Katana Build | -11 -10 -10 -10 -9 -8 -8 ------- Run | Yrd Mat Min Exi Min Mat Sto Slots Evolved 4 | . . . . . 4 . Power . | . . . . . . . Propulsion 1 | . . . . . 1 . Utility 2 | . . . . . 2 . Weapon 1 | . . . . . 1 . Parts Attached 22 | 6 1 1 1 2 1 10 Power 5 | 1 . . . 1 1 2 Engine 3 | 1 . . . 1 . 1 Core 2 | . . . . . 1 1 Reactor . | . . . . . . . Propulsion 3 | 2 . . . . . 1 Treads . | . . . . . . . Leg 1 | . . . . . . 1 Wheel 2 | 2 . . . . . . Hover . | . . . . . . . Flight . | . . . . . . . Utility 4 | . . 1 1 . . 2 Device 2 | . . . . . . 2 Storage 1 | . . 1 . . . . Processor 1 | . . . 1 . . . Hackware . | . . . . . . . Protection . | . . . . . . . Artifact . | . . . . . . . Weapon 10 | 3 1 . . 1 . 5 Energy Gun 6 | 2 1 . . . . 3 Energy Cannon . | . . . . . . . Ballistic Gun 1 | 1 . . . . . . Ballistic Cannon . | . . . . . . . Launcher 1 | . . . . 1 . . Special Weapon 1 | . . . . . . 1 Impact Weapon . | . . . . . . . Slashing Weapon 1 | . . . . . . 1 Piercing Weapon . | . . . . . . . Special Melee Weapon . | . . . . . . . Unidentified Prototypes . | . . . . . . . Parts Lost 13 | . . . . . . 13 Power 2 | . . . . . . 2 Propulsion 3 | . . . . . . 3 Utility 3 | . . . . . . 3 Weapon 5 | . . . . . . 5 Highest Loss Streak 7 | . . . . . . 7 To Critical Strikes . | . . . . . . . Average Slot Usage (%) 80 | . 71 75 94 100 63 12 Engine 11 | . 14 14 14 14 1 1 Wheel 23 | . 28 28 28 28 18 1 Storage 10 | . . 4 14 14 9 1 Processor 7 | . . . 9 14 9 . Energy Gun 21 | . 28 28 28 20 9 . Launcher 2 | . . . . 7 9 1 Peak Build Rating 17 | 5 5 6 14 14 15 17 Average Rating 10 | 3 5 5 11 13 14 3 On Entrance 8 | . 5 5 6 14 13 15 Naked Turns 82 | . . . . . . 82 Heaviest Build 20 | 7 7 17 17 18 20 20 Greatest Support 22 | 20 20 20 20 20 20 22 Greatest Overweight (x) 4 | . . . . . . 4 Average Overweight (x) . | . . . . . . . Largest Inventory Capacity 10 | 5 5 10 10 10 10 10 Average Capacity 8 | 5 5 7 10 10 10 5 Most Carried 10 | 4 4 5 9 10 10 10 Average Carried 7 | 1 2 4 8 8 8 5 Final Capacity 10 | 5 5 10 10 10 10 5 Final Carried 10 | 2 4 5 9 8 10 2 Class Distribution -------------------- 100% | Mutant Dominant Class ---------------- Mutant | -10/Materials Mutant | -10/Mines Mutant | -10/Exiles Mutant | -9/Mines Mutant | -8/Materials Mutant | -8/Storage Resources | -11 -10 -10 -10 -9 -8 -8 ----------- Run | Yrd Mat Min Exi Min Mat Sto Matter Collected 370 | 176 . 57 . 97 40 . Remotely . | . . . . . . . Salvage Created 206 | . . . . 72 121 13 Parts 12 | . . . . 8 4 . Haulers Intercepted . | . . . . . . . Recyclers Shooed . | . . . . . . . Parts Field Recycled . | . . . . . . . Retrieved Matter . | . . . . . . . Parts Self-Destructed . | . . . . . . . Prevented . | . . . . . . . Kills | -11 -10 -10 -10 -9 -8 -8 ------- Run | Yrd Mat Min Exi Min Mat Sto Combat Hostiles Destroyed 8 | . . . . 4 3 1 Guns 4 | . . . . 3 . 1 AOE 4 | . . . . 1 3 . Classes Destroyed 3 | . . . . 2 . 1 Swarmer 3 | . . . . 3 . . Grunt 4 | . . . . 1 3 . Assembled 1 | . . . . . . 1 Best Kill Streak 3 | . . . . 3 3 1 Combat Bots Only 3 | . . . . 3 3 1 Max Kills in Single Turn 1 | . . . . 1 1 1 Gunslinging . | . . . . . . . Exploded 1 | . . . . 1 1 . Melee . | . . . . . . . Uniques/NPCs Destroyed . | . . . . . . . Combat | -11 -10 -10 -10 -9 -8 -8 -------- Run | Yrd Mat Min Exi Min Mat Sto Hostile Shots Fired 157 | . . . . 28 3 126 Missed 49 | . . . . 11 1 37 Damage Taken 1286 | . . . . 159 32 1095 Core 565 | . . . . 15 16 534 Absorbed by Shields . | . . . . . . . Core Remaining (%) 97 | 100 . . . 94 . . Volleys Fired 18 | . . . . 8 3 7 Largest 2 | . . . . 2 2 2 Hottest 90 | . . . . 90 80 90 Shots Fired 32 | . . . . 16 6 10 Gun 27 | . . . . 14 3 10 Cannon . | . . . . . . . Launcher 5 | . . . . 2 3 . Special . | . . . . . . . Kinetic . | . . . . . . . Thermal 19 | . . . . 8 3 8 Explosive 5 | . . . . 2 3 . Electromagnetic 8 | . . . . 6 . 2 Robot Hit Streak 7 | . . . . 3 3 7 Robot Miss Streak 3 | . . . . 3 1 1 Penetration Max . | . . . . . . . Secondary Targets . | . . . . . . . Shots Hit Robots 16 | . . . . 8 4 4 Core Hits 19 | . . . . 6 5 8 Critical Kills . | . . . . . . . Critical Parts Destroyed . | . . . . . . . Critical Strikes . | . . . . . . . Melee Attacks 1 | . . . . . . 1 Impact . | . . . . . . . Slashing 1 | . . . . . . 1 Piercing . | . . . . . . . Sneak Attacks . | . . . . . . . Combat Hostiles . | . . . . . . . Follow-up Attacks . | . . . . . . . Damage Inflicted 471 | . . . . 144 246 81 Guns 148 | . . . . 74 24 50 Cannons . | . . . . . . . Explosions 290 | . . . . 68 222 . Melee . | . . . . . . . Ramming 33 | . . . . 2 . 31 Kinetic . | . . . . . . . Thermal 138 | . . . . 64 24 50 Explosive 290 | . . . . 68 222 . Electromagnetic 10 | . . . . 10 . . Impact . | . . . . . . . Slashing . | . . . . . . . Piercing . | . . . . . . . Highest Corruption 15 | . . . . . . 15 Average Corruption 14 | . . . . . . 14 Corruption Purged . | . . . . . . . Corruption Blocked . | . . . . . . . Effects 8 | . . . . . . 8 Message Errors 3 | . . . . . . 3 Matter Fused 1 | . . . . . . 1 Heat Flow Errors 1 | . . . . . . 1 Data Loss (minor) 1 | . . . . . . 1 Misfires 1 | . . . . . . 1 Misdirections 1 | . . . . . . 1 Overload Shots . | . . . . . . . Overflow Damage . | . . . . . . . Projectiles . | . . . . . . . Explosions . | . . . . . . . Melee . | . . . . . . . Knockbacks . | . . . . . . . Impact . | . . . . . . . Kinetic . | . . . . . . . Secondary . | . . . . . . . Self-Inflicted Damage 10 | . . . . 1 . 9 Shots . | . . . . . . . Rammed 9 | . . . . 1 . 8 Targets Rammed 20 | . . . . 1 . 19 Kicked 11 | . . . . . . 11 Crushed . | . . . . . . . Highest Temperature 180 | . . . . 180 36 133 Average Temperature 51 | . . . . 75 24 23 Received Heat Transfer 328 | . . . . 39 18 271 Siege Activations . | . . . . . . . Robots Corrupted . | . . . . . . . Combat Hostiles . | . . . . . . . Parts Fried . | . . . . . . . Impact Corruptions . | . . . . . . . Robots Melted . | . . . . . . . Combat Hostiles . | . . . . . . . Parts Melted . | . . . . . . . Heat Transferred 407 | . . . . 185 74 148 Parts Sabotaged . | . . . . . . . Parts Stolen . | . . . . . . . Parts Stripped . | . . . . . . . Power Chain Reactions . | . . . . . . . Alert | -11 -10 -10 -10 -9 -8 -8 ------- Run | Yrd Mat Min Exi Min Mat Sto Peak Influence 124 | . 15 5 . 118 123 124 Initial 51 | . . 5 . . 45 51 Average 51 | . 1 5 . 86 74 42 Maximum Alert Level . | . . . . . . . Low Security (%) 100 | 100 100 100 . 100 100 100 Level 1 . | . . . . . . . Level 2 . | . . . . . . . Level 3 . | . . . . . . . Level 4 . | . . . . . . . Level 5 . | . . . . . . . High Security . | . . . . . . . Max Security . | . . . . . . . Squads Dispatched 2 | . . . . . . 2 Investigation . | . . . . . . . Extermination . | . . . . . . . Reinforcement 2 | . . . . . . 2 Assault . | . . . . . . . Garrison . | . . . . . . . Intercept . | . . . . . . . Searches Triggered . | . . . . . . . Construction Impeded . | . . . . . . . Haulers Reinforced . | . . . . . . . Active Scanning Responses . | . . . . . . . Cargo Convoy Interrupts . | . . . . . . . Stealth | -11 -10 -10 -10 -9 -8 -8 --------- Run | Yrd Mat Min Exi Min Mat Sto Distress Signals 5 | . 1 . . . 1 3 Communications Jammed . | . . . . . . . Distress Signals . | . . . . . . . Times Spotted 39 | . 4 . . 7 4 24 Peak Tracking Total 10 | . 5 . . 3 4 10 Tactical Retreats 5 | . . . . 1 . 4 Traps | -11 -10 -10 -10 -9 -8 -8 ------- Run | Yrd Mat Min Exi Min Mat Sto Traps Triggered 1 | . . . . . . 1 Indirectly . | . . . . . . . Trap Hack Attempts . | . . . . . . . Triggered . | . . . . . . . Disarmed . | . . . . . . . Reprogrammed . | . . . . . . . Reused . | . . . . . . . Traps Extracted . | . . . . . . . Installed . | . . . . . . . Triggered . | . . . . . . . Machines | -11 -10 -10 -10 -9 -8 -8 ---------- Run | Yrd Mat Min Exi Min Mat Sto Machines Disabled . | . . . . . . . Max in Single Turn . | . . . . . . . Machines Repaired . | . . . . . . . Machines Dismantled . | . . . . . . . Machines Sabotaged . | . . . . . . . Overloaded Fab Kills . | . . . . . . . Hacking | -11 -10 -10 -10 -9 -8 -8 --------- Run | Yrd Mat Min Exi Min Mat Sto Machines Accessed 8 | . 1 . 5 . . 2 Terminals 2 | . . . . . . 2 Fabricators . | . . . . . . . Repair Stations . | . . . . . . . Recycling Units 1 | . 1 . . . . . Scanalyzers . | . . . . . . . Garrison Access . | . . . . . . . Total Hacks 54 | . 1 . 50 . . 3 Successful 53 | . 1 . 50 . . 2 Failed 1 | . . . . . . 1 Catastrophic . | . . . . . . . Database Lockouts . | . . . . . . . Manual 2 | . . . 2 . . . Terminals 3 | . . . . . . 3 Fabricators . | . . . . . . . Repair Stations . | . . . . . . . Recycling Units 1 | . 1 . . . . . Scanalyzers . | . . . . . . . Garrison Access . | . . . . . . . Terminal Hacks 52 | . . . 50 . . 2 Record 49 | . . . 49 . . . Alert Level 1 | . . . . . . 1 Locate Traps 1 | . . . . . . 1 Derelict Proto ID Bank 1 | . . . 1 . . . Fabricator Hacks . | . . . . . . . Repair Station Hacks . | . . . . . . . Recycling Unit Hacks 1 | . 1 . . . . . Report Inventory 1 | . 1 . . . . . Scanalyzer . | . . . . . . . Garrison Access Hacks . | . . . . . . . Unauthorized Hacks . | . . . . . . . Terminals . | . . . . . . . Fabricators . | . . . . . . . Repair Stations . | . . . . . . . Recycling Units . | . . . . . . . Scanalyzers . | . . . . . . . Garrison Access . | . . . . . . . Data Cores Recovered . | . . . . . . . Used . | . . . . . . . Hacking Detections 2 | . 1 . . . . 1 Full Trace Events . | . . . . . . . Feedback Events . | . . . . . . . Feedback Blocked . | . . . . . . . Robot Schematics Acquired . | . . . . . . . Robots Built . | . . . . . . . Authchips . | . . . . . . . Time . | . . . . . . . Total Robot Build Rating . | . . . . . . . Part Schematics Acquired . | . . . . . . . Parts Built . | . . . . . . . Authchips . | . . . . . . . Time . | . . . . . . . Total Part Build Rating . | . . . . . . . Parts Repaired . | . . . . . . . Time . | . . . . . . . Parts Recycled . | . . . . . . . Recycled Matter . | . . . . . . . Retrieved Matter . | . . . . . . . Retrieved Components . | . . . . . . . Parts Scanalyzed . | . . . . . . . Part Schematics Acquired . | . . . . . . . Parts Damaged . | . . . . . . . Bothacking | -11 -10 -10 -10 -9 -8 -8 ------------ Run | Yrd Mat Min Exi Min Mat Sto Used RIF Installer . | . . . . . . . Robots Hacked . | . . . . . . . Non-combat . | . . . . . . . Combat . | . . . . . . . Robot Hacks Applied . | . . . . . . . Relay Couplers Released . | . . . . . . . Fabnet Peak Effective % . | . . . . . . . Robots Rewired . | . . . . . . . Allies Hacked . | . . . . . . . Hacks Repelled . | . . . . . . . Allies | -11 -10 -10 -10 -9 -8 -8 -------- Run | Yrd Mat Min Exi Min Mat Sto Total Allies 2 | . . . . 2 . . Largest Group 2 | . . . . 2 2 2 Highest-Rated Group 43 | . . . . 43 43 43 Highest-Rated Ally 31 | . . . . 31 31 31 Total Orders . | . . . . . . . Ally Attacks 12 | . . . . . 6 6 Total Damage 188 | . . . . . 104 84 Kills 1 | . . . . . 1 . Allies Corrupted . | . . . . . . . Allies Melted . | . . . . . . . Intel | -11 -10 -10 -10 -9 -8 -8 ------- Run | Yrd Mat Min Exi Min Mat Sto Robot Analysis Total . | . . . . . . . Derelict Logs Recovered 1 | . . . . 1 . . Drone Launches . | . . . . . . . Drone Recoveries . | . . . . . . . Exploration | -11 -10 -10 -10 -9 -8 -8 ------------- Run | Yrd Mat Min Exi Min Mat Sto Turns Passed 1236 | 44 84 90 486 313 57 162 Spaces Moved 1319 | 40 101 110 599 258 45 166 Core 153 | 3 . . . . . 150 Treads . | . . . . . . . Legs 15 | . . . . . . 15 Wheels 1151 | 37 101 110 599 258 45 1 Hover . | . . . . . . . Flight . | . . . . . . . Fastest Speed 50 | 50 80 80 80 80 80 50 Average Speed 77 | 77 80 80 80 80 80 57 Slowest Speed 250 | 80 80 80 80 80 80 250 Overloaded Moves . | . . . . . . . Propulsion Burnouts . | . . . . . . . Robots Hopped . | . . . . . . . Cave-ins Triggered . | . . . . . . . Exploration Rate (%) 37 | 4 31 36 92 53 6 38 Regions Visited 6 Branch Regions 4 Pre-discovered Areas 2 | . . . 1 1 . . Known Exits Taken . | . . . . . . . Unknown Exits Taken 6 | 1 1 1 1 1 1 . Scrap Searched 3 | . . 1 . 2 . . Spaces Dug . | . . . . . . . Terrain Destroyed 34 | . . . . 27 7 . Melee . | . . . . . . . Projectile . | . . . . . . . AOE 34 | . . . . 27 7 . Terrain Rammed . | . . . . . . . Walls Destroyed . | . . . . . . . Machines Disabled . | . . . . . . . Actions | -11 -10 -10 -10 -9 -8 -8 --------- Run | Yrd Mat Min Exi Min Mat Sto Total 1492 | 53 103 111 605 348 59 213 Wait 91 | . . . . 77 7 7 Move 1313 | 39 100 109 598 257 44 166 Hop . | . . . . . . . Pick Up 19 | 7 2 1 5 1 3 . Fast Attach 5 | . . 1 . . . 4 Attach 13 | 6 . . 1 . . 6 Detach 3 | 1 . . . . . 2 Swap 4 | . 1 . . 2 1 . Drop 3 | . . . . 2 1 . Fire 18 | . . . . 8 3 7 Melee 1 | . . . . . . 1 Ram 9 | . . . . 1 . 8 Kick 11 | . . . . . . 11 Crush . | . . . . . . . Escape Stasis . | . . . . . . . Rewire 2 | . . . 1 . . 1 Trap . | . . . . . . . Miscellaneous . | . . . . . . . Route ------- -11/Scrapyard -10/Materials -10/Mines (discovered 2 exits: [*Mat] / *Exi) -10/Exiles (discovered 2 exits: [*Min x2]) -9/Mines -8/Materials -8/Storage History --------- Turn | Location | Event 19 | -11/Scrapyard | Discovered new exit (range 15) 45 | -11/Scrapyard | Entered Materials 123 | -10/Materials | Discovered new exit (range 7) 129 | -10/Materials | Entered Mines 186 | -10/Mines | Discovered new exit (range 9) 215 | -10/Mines | Deemed a non-threat by the Exiles lab entrance 215 | -10/Mines | Discovered new exit (range 5) 219 | -10/Mines | Entered Exiles 242 | -10/Exiles | Discovered new exit (range 14) 259 | -10/Exiles | Met 8R-AWN 275 | -10/Exiles | Met EX-HEX 316 | -10/Exiles | Build established: Mutant 316 | -10/Exiles | Met EX-BIN 326 | -10/Exiles | Aligned with FarCom system 327 | -10/Exiles | Given EX-Vault access code 381 | -10/Exiles | Opened EX-Vault 385 | -10/Exiles | Found 0b10 Alert Chip 390 | -10/Exiles | Found Skeleton Box 407 | -10/Exiles | Warned to stay clear of 0b10 Research branches 435 | -10/Exiles | Met EX-DEC 438 | -10/Exiles | Learned location of Zion (-7) 491 | -10/Exiles | Discovered new exit (range 14) 550 | -10/Exiles | Visited The Gauntlet 705 | -10/Exiles | Stole two prototypes: 0b10 Alert Chip, Skeleton Box 705 | -10/Exiles | Entered Mines 961 | -9/Mines | Discovered new exit (range 7) 1018 | -9/Mines | Entered Materials 1018 | -8/Materials | Accompanied by 2 allies 1018 | -8/Materials | Evolved 4 slots: Propulsion x1, Utility x2, Weapon x1 1023 | -8/Materials | Led the pair of lost Derelicts to an unsafe place 1038 | -8/Materials | Discovered new exit (range 16) 1075 | -8/Materials | Entered Storage 1075 | -8/Storage | Accompanied by 2 allies 1075 | -8/Storage | Assembled infested ambush trap array 1088 | -8/Storage | System corruption reached 10% 1101 | -8/Storage | Released all parts (2) 1124 | -8/Storage | Lost 6 parts (1p2n1u2w) 1216 | -8/Storage | Core integrity fell below 50% 1232 | -8/Storage | Core integrity fell below 20% 1237 | -8/Storage | Destroyed by S-10 Pest with Light Assault Rifle Last Messages --------------- K-01 Serf collects debris. Kicked S-10 Pest. K-01 Serf collects debris. Katana destroyed. Kicked S-10 Pest out of the way. Kicked S-10 Pest. Kicked S-10 Pest out of the way. K-01 Serf collects debris. Kicked S-10 Pest. Ion Engine destroyed. Kicked S-10 Pest. K-01 Serf collects debris. Kicked S-10 Pest. Imp. Aluminum Leg destroyed. Slammed into S-10 Pest. Critical hit (Burn: +37). Slammed into S-10 Pest. K-01 Serf collects debris. System corrupted: Component data lost. K-01 Serf collects debris. Map ----- +----------------------------------------------------+ | | | | | | | | | | | | | | | | | | | ?????????????????????????????????????????? | | ????????????????????????########?????????? | | ????????????????????????# #?????????? | | ????????????????????????# #?????????? | | ?????????????????????####/ #?????????? | | ?????????????????????+ + #?????????? | | ?????????????????????# #g k #?????????? | | ????###+#########+#### s# #?????????? | | ????# %| ##s#####?????????? | | ???? w s #?????????????? | | ???? "" #?????????????? | | ???? "Y Y #?????????????? | | ????# "" #?????????????? | | ????# #??##### #?????????????? | | ??### #??????# Y #?????????????? | | ??# ########+## ##T## #?????????????? | | ??# #^^ # ##### @ #?????????????? | | ??# # ^ # #???# #?????????????? | | ??# # ^ # #???# #?????????????? | | ??# + # #???# #?????????????? | | ??# # """ "" + #???# #?????????????? | | ??# # """ T" # #???# #?????????????? | | ??# # """ "" # #???# #?????????????? | | ??# # # ????# #?????????????? | | ??# ########### ????# #?????????????? | | ??# # #? ????# #?????????????? | | ??# + #? ????# #?????????????? | | ??# # #? ????# #?????????????? | | ??# # """""" #?g????# #?????????????? | | ??# + "????" +? ????# ??????????????? | | ??# # "????" #??????# ??????????????? | | ??# # """""" #??????? ??????????????? | | ??+ # #?????????????????????????? | | ?## # #??????? ?????????????????? | | ??# #####/####??????? ?????????????????? | | ??#####???# #?????????? ?????????????????? | | ??????????# #?????????? ?????????????????? | | ??????????# #?????????? ?????????????????? | | ??????????# #?????????? ?????????????????? | | ??????????# #?????????? ?????????????????? | | ??????????# #?????????# #????????????????? | +----------------------------------------------------+ Best States ------------- Heat Dissipation 31 Energy Generation 14 Energy Capacity 250 Matter Stores 300 Matter Capacity 300 Sight Range 16 Terrain Scan Density 10 Additional Mass Support 9 Evasion (%) 50 Item Schematics ----------------- None Robot Schematics ------------------ None Fabricated ------------ Nothing Alien Tech Used ----------------- None Achievements -------------- None Challenges ------------ None Game ------ Seed OmegaTiamatShield Manual? 0 Play Time 00:35:21 Cumulative 28.1 hours Start 2024.10.11 @ 13:56:24 End 2024.10.11 @ 14:35:50 Sessions 1 Manual Loads 0 Difficulty Rogue Special Mode None Game No. 14 Rogue 7 Adventurer 7 Explorer 0 Win Type - Total 0 Types 0/0/0/0/0/0/0/0/0 Lore% 12 Gallery% 24 Achievement% 22 Wizard Run 0 Options --------- Layout 1 ASCII 0 Keyboard 0 Movement Mouse Keybinds 0 Fullscreen 1 Font 32/SmallcapsGlow Map View 50x40 Zoom Use 0% Tactical HUD 0 Map Filters NONE Filters NONE Steam 0 RUN: 2bd18381-dc2e-42e8-8da9-d505988078e3